fUSD/lending_fUSD_20250820
["ID","MTS","AMOUNT","RATE_DAILY","PERIOD"]
[380361404,1755704241663,-1666.05,0.0003041,120]
[380361405,1755704241716,-974.16,0.0003041,120]
[380361406,1755704241772,-400.0,0.0003041,120]
[380361407,1755704241824,-969.64,0.0003041,120]
[380361408,1755704241881,-1171.86,0.0003041,120]
[380361409,1755704241938,-1150.86,0.0003041,120]
[380361410,1755704241994,-1585.74,0.0003041,120]
[380361411,1755704242052,-1726.77,0.0003041,120]
[380361412,1755704242112,-482.81,0.0003041,120]
[380361413,1755704242168,-400.0,0.0003041,120]
[380361414,1755704242227,-1492.51,0.0003041,120]
[380361415,1755704242285,-1315.68,0.0003041,120]
[380361416,1755704242345,-3095.19,0.0003041,118]
[380361417,1755704242401,-694.92,0.0003041,120]
[380361418,1755704242459,-651.71,0.0003041,120]
[380361419,1755704242515,-400.0,0.0003041,120]
[380361420,1755704242572,-1519.67,0.0003041,120]
[380361421,1755704242627,-400.0,0.0003041,120]
[380361422,1755704242684,-2787.79,0.0003041,120]
[380361423,1755704242741,-400.0,0.0003041,120]
[380361424,1755704242798,-946.3,0.0003041,120]
[380361425,1755704242851,-2545.72,0.0003041,120]
[380361426,1755704242906,-919.15,0.0003041,120]
[380361427,1755704242959,-400.0,0.0003041,120]
[380361428,1755704243014,-784.01,0.0003041,120]
[380361429,1755704243075,-400.0,0.0003041,120]
[380361430,1755704243136,-400.0,0.0003041,120]
[380361431,1755704243196,-1155.56,0.0003041,120]
[380361432,1755704243258,-400.0,0.0003041,120]
[380361433,1755704243317,-400.0,0.0003041,120]
[380361434,1755704243380,-1287.18,0.0003041,120]
[380361435,1755704243440,-407.22,0.0003041,120]
[380361436,1755704243513,-2620.62,0.0003041,120]
[380361437,1755704243576,-1714.44,0.0003041,120]
[380361438,1755704243635,-666.35,0.0003041,120]
[380361439,1755704243695,-457.28,0.0003041,120]
[380361440,1755704243751,-3107.9,0.0003041,120]
[380361441,1755704243809,-1036.24,0.0003041,120]
[380361442,1755704243865,-400.0,0.0003041,120]
[380361443,1755704243921,-400.0,0.0003041,120]
[380361444,1755704243977,-400.0,0.0003041,120]
[380361445,1755704244033,-1108.84,0.0003041,120]
[380361446,1755704244090,-1645.5,0.0003041,120]
[380361447,1755704244157,-1622.45,0.0003041,120]
[380361448,1755704244215,-1297.7,0.0003041,120]
[380361449,1755704244274,-1560.41,0.0003041,120]
[380361450,1755704244341,-1491.86,0.0003041,120]
[380361451,1755704244400,-400.0,0.0003041,120]
[380361452,1755704244455,-523.51,0.0003041,120]
[380361453,1755704244512,-624.41,0.0003041,120]
[380361454,1755704244569,-860.87,0.0003041,120]
[380361455,1755704244633,-1139.74,0.0003041,120]
[380361456,1755704244693,-400.0,0.0003041,120]
[380361457,1755704244753,-2036.4,0.0003041,120]
[380361458,1755704244812,-1235.24,0.0003041,120]
[380361459,1755704244875,-1168.66,0.0003041,120]
[380361460,1755704244934,-1153.09,0.0003041,120]
[380361461,1755704244997,-678.9,0.0003041,120]
[380361462,1755704245060,-502.04,0.0003041,120]
[380361463,1755704245133,-312.75331741,0.0003041,120]
[380361464,1755704245206,-1574.86,0.0003041,120]
[380361465,1755704245280,-1030.1,0.0003041,120]
[380361466,1755704245344,-1105.8,0.0003041,120]
[380361467,1755704245404,-1014.35,0.0003041,120]
[380361468,1755704245463,-1808.38,0.0003041,120]
[380361469,1755704245522,-981.04,0.0003041,120]
[380361470,1755704245579,-1107.87,0.0003041,120]
[380361471,1755704245639,-940.82,0.0003041,120]
[380361472,1755704245698,-400.0,0.0003041,120]
[380361473,1755704245758,-1262.34,0.0003041,120]
[380361474,1755704245814,-400.0,0.0003041,120]
[380361475,1755704245873,-575.92,0.0003041,120]
[380361476,1755704245934,-4460.21,0.0003041,120]
[380361477,1755704245999,-1574.38,0.0003041,120]
[380361478,1755704246068,-3483.7,0.0003041,120]
[380361479,1755704246131,-400.0,0.0003041,120]
[380361480,1755704246191,-982.5,0.0003041,120]
[380361481,1755704246255,-400.0,0.0003041,120]
[380361482,1755704246314,-1036.67,0.0003041,120]
[380361483,1755704246374,-562.95,0.0003041,120]
[380361484,1755704246434,-4249.94,0.0003041,120]
[380361485,1755704246494,-970.03,0.0003041,120]
[380361486,1755704246551,-1093.59,0.0003041,120]
[380361487,1755704246611,-1546.42,0.0003041,120]
[380361488,1755704246671,-1629.64,0.0003041,120]
[380361489,1755704246731,-989.51,0.0003041,120]
[380361490,1755704246787,-1482.65,0.0003041,120]
[380361491,1755704246847,-1533.81,0.0003041,120]
[380361492,1755704246902,-400.0,0.0003041,120]
[380361493,1755704246960,-2012.8,0.0003041,120]
[380361494,1755704247018,-979.71,0.0003041,120]
[380361495,1755704247078,-1282.97,0.0003041,120]
[380361496,1755704247138,-1051.53,0.0003041,120]
[380361497,1755704247200,-1163.9,0.0003041,120]
[380361498,1755704247267,-1009.21,0.0003041,120]
[380361499,1755704247340,-1255.85,0.0003041,120]
[380361500,1755704247400,-498.48,0.0003041,120]
[380361501,1755704247462,-788.47,0.0003041,120]
[380361502,1755704247522,-1106.04,0.0003041,120]
[380361503,1755704247583,-400.0,0.0003041,120]
[380361504,1755704247645,-582.37,0.0003041,120]
[380361505,1755704247702,-1302.36,0.0003041,120]
[380361506,1755704247760,-1222.51,0.0003041,120]
[380361507,1755704248201,-1567.19,0.0003041,120]
[380361508,1755704248274,-1204.77,0.0003041,120]
[380361509,1755704248346,-475.96,0.0003041,120]
[380361510,1755704248407,-1602.17,0.0003041,120]
[380361511,1755704248465,-611.81,0.0003041,120]
[380361512,1755704248526,-2299.2,0.0003041,120]
[380361513,1755704248585,-1767.0,0.0003041,120]
[380361514,1755704248645,-1731.78,0.0003041,120]
[380361515,1755704248704,-1416.62,0.0003041,120]
[380361516,1755704248765,-4682.8,0.0003041,120]
[380361517,1755704248826,-400.0,0.0003041,120]
[380361518,1755704248888,-1317.41,0.0003041,120]
[380361519,1755704248950,-400.0,0.0003041,120]
[380361520,1755704249012,-1072.63,0.0003041,120]
[380361521,1755704249074,-435.9708903,0.0003041,120]
[380361522,1755704249145,-1559.05,0.0003041,120]
[380361523,1755704249215,-400.0,0.0003041,120]
[380361524,1755704249278,-925.44,0.0003041,120]
[380361525,1755704249340,-517.09,0.0003041,120]
[380361526,1755704249402,-400.0,0.0003041,120]
[380361527,1755704249464,-422.38,0.0003041,120]
[380361528,1755704249527,-519.13,0.0003041,120]
[380361529,1755704249589,-751.9,0.0003041,120]
[380361530,1755704249652,-400.0,0.0003041,120]
[380361531,1755704249715,-817.78,0.0003041,120]
[380361532,1755704249780,-400.0,0.0003041,120]
[380361533,1755704249843,-2085.12,0.0003041,120]
[380361534,1755704249906,-400.0,0.0003041,120]
[380361535,1755704249968,-400.0,0.0003041,120]
[380361536,1755704250030,-2111.46,0.0003041,120]
[380361537,1755704250093,-882.78,0.0003041,120]
[380361538,1755704250156,-628.3,0.0003041,120]
[380361539,1755704250219,-1129.24,0.0003041,120]
[380361540,1755704250282,-960.25,0.0003041,120]
[380361541,1755704250347,-3232.33,0.0003041,120]
[380361542,1755704250419,-400.0,0.0003041,120]
[380361543,1755704250499,-614.14,0.0003041,120]
[380361544,1755704250566,-451.16,0.0003041,120]
[380361545,1755704250630,-549.01,0.0003041,120]
[380361546,1755704250694,-400.0,0.0003041,120]
[380361547,1755704250762,-1416.3,0.0003041,120]
[380361548,1755704250828,-400.0,0.0003041,120]
[380361549,1755704250893,-497.52,0.0003041,120]
[380361550,1755704250958,-555.47,0.0003041,120]
[380361551,1755704251025,-955.54,0.0003041,120]
[380361552,1755704251092,-1494.98,0.0003041,120]
[380361553,1755704251162,-400.0,0.0003041,120]
[380361554,1755704251229,-400.0,0.0003041,120]
[380361555,1755704251300,-400.0,0.0003041,120]
[380361556,1755704251370,-814.06,0.0003041,120]
[380361557,1755704251442,-2152.92,0.0003041,120]
[380361558,1755704251517,-260.66238453,0.0003041,120]
[380361559,1755704251590,-814.29,0.0003041,120]
[380361560,1755704251657,-503.92,0.0003041,120]
[380361561,1755704251728,-1932.34,0.0003041,120]
[380361562,1755704251794,-400.0,0.0003041,120]
[380361563,1755704251859,-1071.98,0.0003041,120]
[380361564,1755704251926,-400.0,0.0003041,120]
[380361565,1755704251990,-1323.24,0.0003041,120]
[380361566,1755704252059,-893.37,0.0003041,120]
[380361567,1755704252124,-672.41,0.0003041,120]
[380361568,1755704252194,-1382.27,0.0003041,120]
[380361569,1755704252265,-400.0,0.0003041,120]
[380361570,1755704252334,-369.70674329,0.0003041,120]
[380361571,1755704252401,-400.0,0.0003041,120]
[380361572,1755704252461,-694.49,0.0003041,120]
[380361573,1755704252522,-400.0,0.0003041,120]
[380361574,1755704252584,-1330.74,0.0003041,120]
[380361575,1755704252644,-1271.7,0.0003041,120]
[380361576,1755704252705,-400.0,0.0003041,120]
[380361577,1755704252763,-689.59,0.0003041,120]
[380361578,1755704252824,-1172.55,0.0003041,120]
[380361579,1755704252892,-400.0,0.0003041,120]
[380361580,1755704252966,-2439.05,0.0003041,120]
[380361581,1755704253033,-1237.2,0.0003041,120]
[380361582,1755704253104,-1650.39,0.0003041,120]
[380361583,1755704253167,-400.0,0.0003041,120]
[380361584,1755704253232,-1396.27,0.0003041,120]
[380361585,1755704253296,-1114.08,0.0003041,120]
[380361586,1755704253365,-400.0,0.0003041,120]
[380361587,1755704253428,-1755.63,0.0003041,120]
[380361588,1755704253490,-400.0,0.0003041,120]
[380361589,1755704253553,-877.19,0.0003041,120]
[380361590,1755704253616,-1635.14,0.0003041,120]
[380361591,1755704253674,-400.0,0.0003041,120]
[380361592,1755704253735,-400.0,0.0003041,120]
[380361593,1755704253797,-1408.79,0.0003041,120]
[380361594,1755704253855,-457.1,0.0003041,120]
[380361595,1755704253914,-3557.22,0.0003041,120]
[380361596,1755704253970,-400.0,0.0003041,120]
[380361597,1755704254034,-1847.43,0.0003041,120]
[380361598,1755704254104,-630.81,0.0003041,120]
[380361599,1755704254168,-404.25,0.0003041,120]
[380361600,1755704254231,-179.28,0.0003041,120]
[380361601,1755704254295,-400.0,0.0003041,120]
[380361602,1755704254366,-1567.31,0.0003041,120]
[380361603,1755704254426,-400.0,0.0003041,120]
[380361604,1755704254485,-954.98,0.0003041,120]
[380361605,1755704254546,-1540.34,0.0003041,120]
[380361606,1755704254606,-592.5,0.0003041,120]
[380361607,1755704254666,-400.0,0.0003041,120]
[380361608,1755704254723,-897.43,0.0003041,120]
[380361609,1755704254781,-1864.26,0.0003041,120]
[380361610,1755704254838,-767.51,0.0003041,120]
[380361611,1755704254895,-497.66,0.0003041,120]
[380361612,1755704254952,-562.9,0.0003041,60]
[380361613,1755704255011,-1870.68,0.0003041,120]
[380361614,1755704255067,-517.44,0.0003041,120]
[380361615,1755704255125,-1314.84,0.0003041,120]
[380361616,1755704255184,-1579.83,0.0003041,120]
[380361617,1755704255245,-1292.5,0.0003041,120]
[380361618,1755704255307,-400.0,0.0003041,120]
[380361619,1755704255368,-400.0,0.0003041,120]
[380361620,1755704255427,-497.22,0.0003041,120]
[380361621,1755704255490,-796.95,0.0003041,120]
[380361622,1755704255836,-1478.7,0.0003041,120]
[380361623,1755704255895,-1203.29,0.0003041,120]
[380361624,1755704255968,-1612.97,0.0003041,120]
[380361625,1755704256043,-1000.93,0.0003041,120]
[380361626,1755704256119,-400.0,0.0003041,120]
[380361627,1755704256187,-741.27,0.0003041,120]
[380361628,1755704256255,-372.11330277,0.0003041,120]
[380361629,1755704256316,-1471.46,0.0003041,120]
[380361630,1755704256375,-513.78,0.0003041,120]
[380361631,1755704256437,-400.0,0.0003041,120]
[380361632,1755704256498,-400.0,0.0003041,120]
[380361633,1755704256556,-1015.74,0.0003041,120]
[380361634,1755704256615,-400.0,0.0003041,120]
[380361635,1755704256673,-1708.33,0.0003041,120]
[380361636,1755704256732,-737.98,0.0003041,120]
[380361637,1755704256791,-1054.95,0.0003041,120]
[380361638,1755704256848,-3349.39,0.0003041,120]
[380361639,1755704256906,-400.0,0.0003041,120]
[380361640,1755704256965,-2591.8,0.0003041,120]
[380361641,1755704257025,-1253.87,0.0003041,120]
[380361642,1755704257094,-1272.44,0.0003041,120]
[380361643,1755704257163,-400.0,0.0003041,120]
[380361644,1755704257226,-1199.18,0.0003041,120]
[380361645,1755704257287,-476.88,0.0003041,120]
[380361646,1755704257348,-1905.84,0.0003041,120]
[380361647,1755704257409,-400.0,0.0003041,120]
[380361648,1755704257477,-1265.57,0.0003041,120]
[380361649,1755704257537,-1020.67,0.0003041,120]
[380361650,1755704257596,-542.94,0.0003041,120]
[380361651,1755704257654,-1177.32,0.0003041,120]
[380361652,1755704257712,-400.0,0.0003041,120]
[380361653,1755704257765,-1695.54,0.0003041,120]
[380361654,1755704257821,-1546.01,0.0003041,120]
[380361655,1755704257875,-400.0,0.0003041,120]
[380361656,1755704257930,-942.87,0.0003041,120]
[380361657,1755704257986,-617.27,0.0003041,120]
[380361658,1755704258040,-1377.85,0.0003041,120]
[380361659,1755704258099,-400.0,0.0003041,120]
[380361660,1755704258160,-1478.94,0.0003041,120]
[380361661,1755704258216,-400.0,0.0003041,120]
[380361662,1755704258278,-400.0,0.0003041,120]
[380361663,1755704258335,-2891.27,0.0003041,120]
[380361664,1755704258395,-1696.74,0.0003041,120]
[380361665,1755704258454,-1041.84,0.0003041,120]
[380361666,1755704258515,-400.0,0.00030684,120]
[380361667,1755704258574,-400.0,0.00030684,120]
[380361668,1755704258634,-400.0,0.00030684,120]
[380361669,1755704258693,-400.0,0.00030684,120]
[380361670,1755704258752,-400.0,0.00030684,120]
[380361671,1755704258815,-400.0,0.00030684,120]
[380361672,1755704258874,-400.0,0.00030684,120]
[380361673,1755704258931,-400.0,0.00030684,120]
[380361674,1755704258990,-400.0,0.00030684,120]
[380361675,1755704259050,-400.0,0.00030684,120]
[380361676,1755704259115,-400.0,0.00030684,120]
[380361677,1755704259179,-400.0,0.00030684,120]
[380361678,1755704259238,-400.0,0.00030684,120]
[380361679,1755704259300,-400.0,0.00030684,120]
[380361680,1755704259361,-164.02318018,0.00030684,120]
[380361681,1755704259425,-400.0,0.00030684,120]
[380361682,1755704259482,-400.0,0.00030684,120]
[380361683,1755704259539,-400.0,0.00030684,120]
[380361684,1755704259597,-400.0,0.00030684,120]
[380361685,1755704259653,-400.0,0.00030684,120]
[380361686,1755704259710,-389.49999426,0.00030684,120]
[380361687,1755704259766,-400.0,0.00030684,120]
[380361688,1755704259822,-400.0,0.00030684,120]
[380361689,1755704259879,-400.0,0.00030684,120]
[380361690,1755704259936,-333.4417549,0.00030684,120]
[380361691,1755704259995,-400.0,0.00030684,120]
[380361692,1755704260057,-400.0,0.00030684,120]
[380361693,1755704260113,-400.0,0.00030684,120]
[380361694,1755704260172,-400.0,0.00030684,120]
[380361695,1755704260230,-718.51,0.00030684,120]
[380361696,1755704260288,-400.0,0.00030684,120]
[380361697,1755704260346,-409.17,0.00030684,120]
[380361698,1755704260404,-400.0,0.00030684,120]
[380361699,1755704260464,-400.0,0.00030684,120]
[380361700,1755704260527,-764.68,0.00030684,120]
[380361701,1755704260589,-1304.1,0.00030684,120]
[380361702,1755704260645,-390.15,0.00030684,120]
[380361703,1755704260700,-400.0,0.00030684,120]
[380361704,1755704260758,-1156.68,0.00030684,120]
[380361705,1755704260811,-856.6,0.00030684,120]
[380361706,1755704260867,-830.27,0.00030684,120]
[380361707,1755704260920,-400.0,0.00030684,120]
[380361708,1755704260978,-1221.68,0.00030684,120]
[380361709,1755704261037,-400.0,0.00030684,120]
[380361710,1755704261095,-736.77,0.00030684,120]
[380361711,1755704261152,-400.0,0.00030684,120]
[380361712,1755704261212,-400.0,0.00030684,120]
[380361713,1755704261272,-400.0,0.00030684,120]
[380361714,1755704261329,-1319.89,0.00030684,120]
[380361715,1755704261387,-429.34,0.00030684,120]
[380361716,1755704261443,-291.14312868,0.00030684,120]
[380361717,1755704261497,-1260.04,0.00030684,120]
[380361718,1755704261552,-1210.02,0.00030684,120]
[380361719,1755704261604,-400.0,0.00030684,120]
[380361720,1755704261661,-400.0,0.00030684,120]
[380361721,1755704261716,-400.0,0.00030684,120]
[380361722,1755704261768,-444.48,0.00030684,120]
[380361723,1755704261826,-1381.73,0.00030684,120]
[380361724,1755704261879,-501.14,0.00030684,120]
[380361725,1755704261934,-1258.97,0.00030684,120]
[380361726,1755704261988,-400.0,0.00030684,120]
[380361727,1755704262054,-1036.36,0.00030684,120]
[380361728,1755704262114,-1368.59,0.00030684,120]
[380361729,1755704262170,-907.35,0.00030684,120]
[380361730,1755704262229,-400.0,0.00030684,120]
[380361731,1755704262289,-440.34,0.00030684,120]
[380361732,1755704262346,-802.81,0.00030684,120]
[380361733,1755704262405,-400.0,0.00030684,120]
[380361734,1755704262463,-400.0,0.00030684,120]
[380361735,1755704262522,-400.0,0.00030684,120]
[380361736,1755704262580,-400.0,0.00030684,90]
[380361737,1755704263114,-838.13,0.00030684,120]
[380361738,1755704263172,-400.0,0.00030684,120]
[380361739,1755704263232,-1042.39,0.00030684,120]
[380361740,1755704263294,-1198.19,0.00030684,120]
[380361741,1755704263357,-461.84,0.00030684,120]
[380361742,1755704263421,-400.0,0.00030684,120]
[380361743,1755704263483,-400.0,0.00030684,120]
[380361744,1755704263542,-453.74,0.00030684,120]
[380361745,1755704263603,-445.48,0.00030684,120]
[380361746,1755704263662,-400.0,0.00030684,120]
[380361747,1755704263720,-400.0,0.00030684,120]
[380361748,1755704263777,-400.0,0.00030684,120]
[380361749,1755704263835,-1126.38,0.00030684,120]
[380361750,1755704263896,-400.0,0.00030684,120]
[380361751,1755704263957,-400.0,0.00030684,120]
[380361752,1755704264021,-420.47,0.00030684,120]
[380361753,1755704264083,-400.0,0.00030684,120]
[380361754,1755704264148,-400.0,0.00030684,120]
[380361755,1755704264209,-1112.16,0.00030684,120]
[380361756,1755704264270,-400.0,0.00030684,120]
[380361757,1755704264328,-1031.31,0.00030684,120]
[380361758,1755704264387,-400.0,0.00030684,120]
[380361759,1755704264458,-400.0,0.00030684,120]
[380361760,1755704264518,-716.98,0.00030684,120]
[380361761,1755704264585,-400.0,0.00030684,120]
[380361762,1755704264645,-400.0,0.00030684,120]
[380361763,1755704264705,-400.0,0.00030684,120]
[380361764,1755704264767,-400.0,0.00030684,120]
[380361765,1755704264827,-1006.75,0.00030684,120]
[380361766,1755704264890,-1527.1,0.00030684,120]
[380361767,1755704264950,-496.67,0.00030684,120]
[380361768,1755704265016,-1248.22,0.00030684,120]
[380361769,1755704265080,-400.0,0.00030684,120]
[380361770,1755704265143,-400.0,0.00030684,120]
[380361771,1755704265205,-400.0,0.00030684,120]
[380361772,1755704265268,-667.85,0.00030684,120]
[380361773,1755704265328,-400.0,0.00030684,120]
[380361774,1755704265389,-813.99,0.00030684,120]
[380361775,1755704265451,-400.0,0.00030684,120]
[380361776,1755704265512,-934.42,0.00030684,120]
[380361777,1755704265572,-400.0,0.00030684,120]
[380361778,1755704265630,-1363.06,0.00030684,120]
[380361779,1755704265689,-400.0,0.00030684,120]
[380361780,1755704265751,-400.0,0.00030684,120]
[380361781,1755704265810,-400.0,0.00030684,120]
[380361782,1755704265872,-401.53,0.00030684,120]
[380361783,1755704265934,-1260.09,0.00030684,120]
[380361784,1755704265995,-850.0,0.00030684,120]
[380361785,1755704266070,-400.0,0.00030684,120]
[380361786,1755704266141,-400.0,0.00030684,120]
[380361787,1755704266204,-400.0,0.00030684,120]
[380361788,1755704266265,-400.0,0.00030684,120]
[380361789,1755704266326,-405.79357435,0.00030684,120]
[380361790,1755704266389,-400.0,0.00030684,120]
[380361791,1755704266450,-400.0,0.00030684,120]
[380361792,1755704266513,-836.95,0.00030684,120]
[380361793,1755704266572,-400.0,0.00030684,120]
[380361794,1755704266629,-1116.84,0.00030684,120]
[380361795,1755704266685,-414.7,0.00030684,120]
[380361796,1755704266739,-1147.15,0.00030684,120]
[380361797,1755704266795,-400.0,0.00030684,120]
[380361798,1755704266852,-400.0,0.00030684,120]
[380361799,1755704266907,-743.12,0.00030684,120]
[380361800,1755704266966,-400.0,0.00030684,120]
[380361801,1755704267024,-636.3,0.00030684,120]
[380361802,1755704267084,-400.0,0.00030684,120]
[380361803,1755704267142,-400.0,0.00030684,120]
[380361804,1755704267199,-568.88,0.00030684,120]
[380361805,1755704267259,-1024.76,0.00030684,120]
[380361806,1755704267319,-1060.06,0.00030684,120]
[380361807,1755704267378,-490.34,0.00030684,120]
[380361808,1755704267439,-1190.88,0.00030684,120]
[380361809,1755704267498,-400.0,0.00030684,120]
[380361810,1755704267560,-676.12,0.00030684,120]
[380361811,1755704267620,-660.42,0.00030684,120]
[380361812,1755704267675,-400.0,0.00030684,120]
[380361813,1755704267733,-400.0,0.00030684,120]
[380361814,1755704267786,-1161.56,0.00030684,120]
[380361815,1755704267842,-545.33,0.00030684,120]
[380361816,1755704267895,-400.0,0.00030684,120]
[380361817,1755704267946,-400.0,0.00030684,120]
[380361818,1755704268001,-610.37,0.00030684,120]
[380361819,1755704268060,-400.0,0.00030684,120]
[380361820,1755704268119,-477.42,0.00030684,120]
[380361821,1755704268179,-400.0,0.00030684,120]
[380361822,1755704268236,-400.0,0.00030684,120]
[380361823,1755704268294,-739.93,0.00030684,120]
[380361824,1755704268351,-400.0,0.00030684,120]
[380361825,1755704268409,-400.0,0.00030684,120]
[380361826,1755704268472,-400.0,0.00030684,120]
[380361827,1755704268532,-948.0,0.00030684,120]
[380361828,1755704268589,-400.0,0.00030684,120]
[380361829,1755704268642,-1022.6,0.00030684,120]
[380361830,1755704268700,-400.0,0.00030684,120]
[380361831,1755704268757,-562.61,0.00030684,120]
[380361832,1755704268814,-1417.89,0.00030684,120]
[380361833,1755704268872,-706.16,0.00030684,120]
[380361834,1755704268926,-400.0,0.00030684,120]
[380361835,1755704268980,-400.0,0.00030684,120]
[380361836,1755704269032,-413.98,0.00030684,120]
[380361837,1755704269087,-400.0,0.00030684,120]
[380361838,1755704269151,-536.4,0.00030684,120]
[380361839,1755704269210,-505.76,0.00030684,120]
[380361840,1755704269272,-1118.73,0.00030684,120]
[380361841,1755704269333,-946.77,0.00030684,120]
[380361842,1755704269399,-1466.46,0.00030684,120]
[380361843,1755704269458,-400.0,0.00030684,120]
[380361844,1755704269522,-1782.22,0.00030684,120]
[380361845,1755704269585,-827.07,0.00030684,120]
[380361846,1755704269650,-400.0,0.00030684,120]
[380361847,1755704269710,-793.29,0.00030684,120]
[380361848,1755704269773,-400.0,0.00030684,120]
[380361849,1755704269831,-1350.43,0.00030684,120]
[380361850,1755704269888,-400.0,0.00030684,120]
[380361851,1755704269942,-400.0,0.00030684,120]
[380361852,1755704270327,-1208.94,0.00030684,120]
[380361853,1755704270386,-852.64,0.00030684,120]
[380361854,1755704270434,-400.0,0.00030684,120]
[380361855,1755704270487,-400.0,0.00030684,120]
[380361856,1755704270537,-1507.29,0.00030684,120]
[380361857,1755704270587,-1073.43,0.00030684,120]
[380361858,1755704270637,-400.0,0.00030684,120]
[380361859,1755704270684,-745.21,0.00030684,120]
[380361860,1755704270732,-400.0,0.00030684,120]
[380361861,1755704270780,-1371.84,0.00030684,120]
[380361862,1755704270825,-1221.95,0.00030684,120]
[380361863,1755704270876,-586.7,0.00030684,120]
[380361864,1755704270936,-1285.78,0.00030684,120]
[380361865,1755704270990,-400.0,0.00030684,120]
[380361866,1755704271045,-972.59,0.00030684,120]
[380361867,1755704271105,-711.84,0.00030684,120]
[380361868,1755704271165,-844.74,0.00030684,120]
[380361869,1755704271225,-587.89,0.00030684,120]
[380361870,1755704271289,-827.37,0.00030684,120]
[380361871,1755704271353,-853.26,0.00030684,120]
[380361872,1755704271416,-859.97,0.00030684,120]
[380361873,1755704271478,-733.34,0.00030684,120]
[380361874,1755704271538,-400.0,0.00030684,120]
[380361875,1755704271597,-400.0,0.00030684,120]
[380361876,1755704271656,-1067.86,0.00030684,120]
[380361877,1755704271726,-729.4,0.00030684,120]
[380361878,1755704271801,-418.57,0.00030684,120]
[380361879,1755704271855,-850.72,0.00030684,120]
[380361880,1755704271912,-400.0,0.00030684,120]
[380361881,1755704271974,-400.0,0.00030684,120]
[380361882,1755704272044,-818.25,0.00030684,120]
[380361883,1755704272101,-565.64,0.00030684,120]
[380361884,1755704272160,-1293.57,0.00030684,120]
[380361885,1755704272216,-400.0,0.00030684,120]
[380361886,1755704272269,-400.0,0.00030684,120]
[380361887,1755704272327,-1218.32,0.00030684,120]
[380361888,1755704272382,-400.0,0.00030684,120]
[380361889,1755704272436,-400.0,0.00030684,120]
[380361890,1755704272496,-400.0,0.00030684,120]
[380361891,1755704272551,-1000.0,0.00030684,120]
[380361892,1755704272605,-1177.92,0.00030684,120]
[380361893,1755704272657,-638.15,0.00030684,120]
[380361894,1755704272708,-400.0,0.00030684,120]
[380361895,1755704272761,-481.16,0.00030684,120]
[380361896,1755704272810,-962.08,0.00030684,120]
[380361897,1755704272862,-1553.61,0.00030684,120]
[380361898,1755704272910,-837.36,0.00030684,120]
[380361899,1755704272961,-820.35,0.00030684,120]
[380361900,1755704273016,-400.0,0.00030684,120]
[380361901,1755704273069,-662.65,0.00030684,120]
[380361902,1755704273126,-1177.78,0.00030684,120]
[380361903,1755704273182,-400.0,0.00030684,120]